bitfinex/quotes_BTCUSD_20240721
["timestamp","ask_amount","ask_price","bid_price","bid_amount"]
[1721558404640,1.54625431,67013.0,67012.0,0.00241005]
[1721558405712,1.39926161,67013.0,67012.0,0.00241005]
[1721558407120,1.78242061,67013.0,67012.0,0.00241005]
[1721558407307,1.80475381,67013.0,67012.0,0.00241005]
[1721558407499,1.69308414,67013.0,67012.0,0.00241005]
[1721558408070,1.80476181,67013.0,67012.0,0.00241005]
[1721558408714,1.93094339,67013.0,67012.0,0.00241005]
[1721558409047,1.81926572,67013.0,67012.0,0.00241005]
[1721558411492,1.69308414,67013.0,67012.0,0.00241005]
[1721558411699,1.69371187,67013.0,67012.0,0.00241005]
[1721558412102,1.82774402,67013.0,67012.0,0.00241005]
[1721558412364,1.82770711,67013.0,67012.0,0.00241005]
[1721558412565,1.69371187,67013.0,67012.0,0.00241005]
[1721558412745,1.84806144,67013.0,67012.0,0.00241005]
[1721558412926,1.83406144,67013.0,67012.0,0.00241005]
[1721558413126,1.84806144,67013.0,67012.0,0.00241005]
[1721558413326,1.98204206,67013.0,67012.0,0.00241005]
[1721558413531,1.96804206,67013.0,67012.0,0.00241005]
[1721558413731,1.95404206,67013.0,67012.0,0.00241005]
[1721558413934,1.96804206,67013.0,67012.0,0.00241005]
[1721558414373,1.96804144,67013.0,67012.0,0.00241005]
[1721558415153,1.98204144,67013.0,67012.0,0.00241005]
[1721558415376,1.84806144,67013.0,67012.0,0.00241005]
[1721558415988,1.10740641,67004.0,67003.0,0.0493823]
[1721558416237,1.62208218,67004.0,67003.0,0.0493823]
[1721558416437,1.62208218,67004.0,67001.0,0.009207]
[1721558416438,0.86864041,67002.0,67001.0,0.009207]
[1721558416652,1.12302215,67002.0,67001.0,0.009207]
[1721558418198,1.13402215,67002.0,67001.0,0.009207]
[1721558419143,1.29637172,67002.0,67001.0,0.009207]
[1721558420085,1.38637172,67002.0,67001.0,0.009207]
[1721558420724,1.23202215,67002.0,67001.0,0.009207]
[1721558427981,1.14202215,67002.0,67001.0,0.009207]
[1721558428175,1.23202215,67002.0,67001.0,0.009207]
[1721558428914,1.24098729,67002.0,67001.0,0.009207]
[1721558431686,1.24932142,67002.0,67001.0,0.009207]
[1721558435337,0.97767601,67002.0,67001.0,0.20397927]
[1721558435532,0.88767601,67002.0,67001.0,0.20397927]
[1721558435729,0.64887801,67002.0,67001.0,0.20397927]
[1721558440829,0.03629927,67002.0,67001.0,0.20397927]
[1721558441031,0.02733413,67002.0,67001.0,0.22113186]
[1721558441235,0.019,67002.0,67001.0,0.22113186]
[1721558441571,0.019,67002.0,67001.0,0.34508428]
[1721558441993,0.019,67002.0,67001.0,0.46448528]
[1721558442196,0.02726001,67002.0,67001.0,0.46448528]
[1721558442401,0.02726001,67002.0,67001.0,0.46348528]
[1721558442929,0.02726001,67002.0,67001.0,0.46348007]
[1721558443130,0.02726001,67002.0,67001.0,0.34407907]
[1721558443326,0.01926001,67002.0,67001.0,0.34407907]
[1721558443539,0.02526001,67002.0,67001.0,0.34407907]
[1721558443939,0.01426001,67002.0,67001.0,0.34407907]
[1721558444139,0.01626001,67002.0,67001.0,0.34407907]
[1721558444351,0.00926001,67002.0,67001.0,0.34407907]
[1721558444929,0.01126001,67002.0,67001.0,0.34407907]
[1721558446332,0.01126001,67002.0,67001.0,0.344079]
[1721558447435,0.13065901,67002.0,67001.0,0.344079]
[1721558449381,0.13065901,67002.0,67001.0,0.34407907]
[1721558450223,0.12965901,67002.0,67001.0,0.34407907]
[1721558450414,0.13465901,67002.0,67001.0,0.22013186]
[1721558450818,0.12965901,67002.0,67001.0,0.22013186]
[1721558451232,0.13065901,67002.0,67001.0,0.22013186]
[1721558452041,0.12865901,67002.0,67001.0,0.22013186]
[1721558452415,0.13565901,67002.0,67001.0,0.22013186]
[1721558453583,0.13965901,67002.0,67001.0,0.22013186]
[1721558454220,0.13465901,67002.0,67001.0,0.22013186]
[1721558454521,0.13665901,67002.0,67001.0,0.22013186]
[1721558456203,0.12965901,67002.0,67001.0,0.22013186]
[1721558456499,0.13365901,67002.0,67001.0,0.22013186]
[1721558458328,0.37245701,67002.0,67001.0,0.22013186]
[1721558461410,1.00443475,67002.0,67001.0,0.153607]
[1721558464184,1.00443475,67002.0,67001.0,0.32693032]
[1721558464340,0.52683875,67002.0,67001.0,0.32693032]
[1721558464563,0.52683875,67002.0,67001.0,0.32792154]
[1721558464767,0.52683875,67002.0,67001.0,0.20397049]
[1721558464969,0.76563675,67002.0,67001.0,0.32792151]
[1721558465372,0.52683875,67002.0,67001.0,0.32792151]
[1721558467835,0.52683875,67002.0,67001.0,0.32792146]
[1721558468041,0.37245701,67002.0,67001.0,0.32792146]
[1721558468784,0.37245701,67002.0,67001.0,0.20397049]
[1721558471939,0.37245701,67002.0,67001.0,0.12287049]
[1721558473089,0.37245701,67002.0,67001.0,0.24682145]
[1721558475224,0.37245701,67002.0,67001.0,0.13314918]
[1721558475225,0.44875701,67002.0,67001.0,0.13314918]
[1721558475433,0.70823165,67002.0,67001.0,0.13314918]
[1721558475660,0.94702965,67002.0,67001.0,0.00919822]
[1721558475859,1.18582765,67002.0,67001.0,0.00919822]
[1721558476582,1.08073475,67002.0,67001.0,0.00919822]
[1721558478214,0.76563675,67002.0,67001.0,0.00919822]
[1721558478441,0.76563675,67002.0,67001.0,0.05857049]
[1721558479650,0.76563675,67002.0,67001.0,0.05857051]
[1721558485195,0.76563675,67002.0,67001.0,0.00919824]
[1721558492945,0.84193675,67002.0,67001.0,0.00919824]
[1721558497991,0.76563675,67002.0,67001.0,0.00919824]
[1721558500125,0.76563675,67002.0,67001.0,0.05857051]
[1721558500347,0.76563675,67002.0,67001.0,0.12357051]
[1721558503785,0.76563675,67002.0,67001.0,0.07419824]
[1721558503921,0.76563675,67002.0,67001.0,0.00919824]
[1721558504128,0.76647675,67002.0,67001.0,0.00919824]
[1721558505225,0.76647675,67002.0,67001.0,0.13315367]
[1721558508974,0.76647675,67002.0,67001.0,0.13315368]
[1721558509598,0.76647675,67002.0,67001.0,0.00919825]
[1721558509792,0.76647675,67002.0,67001.0,0.13315368]
[1721558510528,0.76505559,67002.0,67001.0,0.13315368]
[1721558512478,0.76505559,67002.0,67001.0,0.00919825]
[1721558512599,0.76505559,67002.0,67001.0,0.13315369]
[1721558515457,0.76505559,67002.0,67001.0,0.00919825]
[1721558515656,0.76505559,67002.0,67001.0,0.13315373]
[1721558516509,1.00385359,67002.0,67001.0,0.13315373]
[1721558519054,1.00385359,67002.0,67001.0,0.00919825]
[1721558519251,1.00385359,67002.0,67001.0,0.13315374]
[1721558521680,1.00385359,67002.0,67001.0,0.13315376]
[1721558522139,1.00385359,67002.0,67001.0,0.13315375]
[1721558524841,1.00385359,67002.0,67001.0,0.13315371]
[1721558527668,1.00385359,67002.0,67001.0,0.13315372]
[1721558528297,1.00385359,67002.0,67001.0,0.13315377]
[1721558531476,1.00385359,67002.0,67001.0,0.00919826]
[1721558531681,1.00385359,67002.0,67001.0,0.13315379]
[1721558533050,1.00385359,67002.0,67001.0,0.00919826]
[1721558533210,1.00385359,67002.0,67001.0,0.13315379]
[1721558535699,1.33545057,67002.0,67001.0,0.13315379]
[1721558535900,1.72167827,67002.0,67001.0,0.00919826]
[1721558536148,1.609899,67002.0,67001.0,0.00919826]
[1721558536329,1.72162205,67002.0,67001.0,0.00919826]
[1721558536559,1.68677464,67002.0,67001.0,0.00919826]
[1721558536746,1.44797664,67002.0,67001.0,0.00919826]
[1721558537150,1.34725359,67002.0,67001.0,0.00919826]
[1721558537301,1.34325359,67002.0,67001.0,0.00919826]
[1721558537538,1.59105159,67002.0,67001.0,0.00919826]
[1721558537909,1.385101,67002.0,67001.0,0.00919826]
[1721558538255,1.28735359,67002.0,67001.0,0.00919826]
[1721558538655,1.29719877,67002.0,67001.0,0.00919826]
[1721558539862,1.20719877,67002.0,67001.0,0.00919826]
[1721558541255,1.20717311,67002.0,67001.0,0.00919826]
[1721558541614,1.2071731,67002.0,67001.0,0.00919826]
[1721558542393,1.11785359,67002.0,67001.0,0.00919826]
[1721558545195,1.11785359,67002.0,67001.0,0.05857053]
[1721558545801,1.20785359,67002.0,67001.0,0.00919826]
[1721558546829,0.96905559,67002.0,67001.0,0.20087053]
[1721558547615,0.87905559,67002.0,67001.0,0.20087053]
[1721558547815,0.87905559,67002.0,67001.0,0.20087054]
[1721558549609,0.87905559,67002.0,67001.0,0.15149827]
[1721558550617,0.87905559,67002.0,67001.0,0.20087054]
[1721558552541,0.87905559,67002.0,67001.0,0.15149827]
[1721558553318,0.87905559,67002.0,67001.0,0.07119827]
[1721558553869,0.87905559,67002.0,67001.0,0.00919827]
[1721558557051,1.11785359,67002.0,67001.0,0.11917054]
[1721558557270,1.11785359,67002.0,67001.0,0.06979827]
[1721558558709,0.87905559,67002.0,67001.0,0.06979827]
[1721558559030,1.11785359,67002.0,67001.0,0.06979827]
[1721558561458,1.11785359,67002.0,67001.0,0.00919827]
[1721558562892,0.87905559,67002.0,67001.0,0.00919827]
[1721558569145,1.11785359,67002.0,67001.0,0.00919827]
[1721558569340,0.87905559,67002.0,67001.0,0.00919827]
[1721558569775,1.11785359,67002.0,67001.0,0.00919827]
[1721558573240,1.20015359,67002.0,67001.0,0.00919827]
[1721558576485,1.11785359,67002.0,67001.0,0.00919827]
[1721558577107,1.11785359,67002.0,67001.0,0.07449827]
[1721558581354,1.11285359,67002.0,67001.0,0.07449827]
[1721558581560,1.11788541,67002.0,67001.0,0.07449827]
[1721558581733,1.11101474,67002.0,67001.0,0.07449827]
[1721558584310,0.87221674,67002.0,67001.0,0.07449827]
[1721558584511,0.87221674,67002.0,67001.0,0.15049827]
[1721558585984,0.87221674,67002.0,67001.0,0.15049828]
[1721558588678,0.87221674,67002.0,67001.0,0.19987055]
[1721558590341,0.87221674,67002.0,67001.0,0.15049828]
[1721558591526,0.87221674,67002.0,67001.0,0.19987055]
[1721558595702,0.87221674,67002.0,67001.0,0.15049828]
[1721558596677,0.87221674,67002.0,67001.0,0.07449828]
[1721558597378,0.87221674,67002.0,67001.0,0.14989828]
[1721558597581,0.87221674,67002.0,67001.0,0.19927055]
[1721558597790,0.87221674,67002.0,67001.0,0.14989828]
[1721558598240,0.87221674,67002.0,67001.0,0.19927055]
[1721558598441,0.87221674,67002.0,67001.0,0.14989828]
[1721558598640,0.87221674,67002.0,67001.0,0.19927055]
[1721558614032,0.87021674,67002.0,67001.0,0.19927055]
[1721558615276,0.87021674,67002.0,67001.0,0.14989828]
[1721558615625,0.87021674,67002.0,67001.0,0.07449828]
[1721558620056,0.87021674,67002.0,67001.0,0.12387055]
[1721558620557,0.87021674,67002.0,67001.0,0.19897055]
[1721558621187,0.02084,67002.0,67001.0,0.19897055]
[1721558621383,0.02084,67002.0,67001.0,0.3400795]
[1721558621846,0.02084,67002.0,67001.0,0.34006854]
[1721558622095,0.02084,67002.0,67001.0,0.34006855]
[1721558622305,0.01184,67002.0,67001.0,0.34006855]
[1721558622538,0.01584,67002.0,67001.0,0.34006855]
[1721558622949,0.00484,67002.0,67001.0,0.34006855]
[1721558623161,0.00084,67002.0,67001.0,0.34006855]
[1721558623274,0.00484,67002.0,67001.0,0.34006855]
[1721558624453,0.00684,67002.0,67001.0,0.34006855]
[1721558625101,0.00684,67002.0,67001.0,0.34006752]
[1721558625303,0.00484,67002.0,67001.0,0.34006752]
[1721558625501,0.00584,67002.0,67001.0,0.34006752]
[1721558626009,0.00184,67002.0,67001.0,0.34006752]
[1721558626436,0.00484,67002.0,67001.0,0.34006752]
[1721558626642,0.00484,67002.0,67001.0,0.69827052]
[1721558626814,0.00484,67002.0,67001.0,0.93707252]
[1721558627619,0.00084,67002.0,67001.0,0.93707252]
[1721558628419,0.00084,67002.0,67001.0,0.93706204]
[1721558628763,0.00084,67002.0,67001.0,0.93906204]
[1721558629490,0.00084,67002.0,67001.0,0.93806204]
[1721558629714,0.00084,67002.0,67001.0,0.96106204]
[1721558630050,0.00084,67002.0,67001.0,0.96006204]
[1721558630276,0.00084,67002.0,67001.0,1.19886404]
[1721558630517,0.00084,67002.0,67001.0,1.24362055]
[1721558630647,0.00084,67002.0,67001.0,1.24986404]
[1721558630991,0.00084,67002.0,67001.0,1.78378268]
[1721558631346,0.00084,67002.0,67001.0,1.43803622]
[1721558631549,0.00084,67002.0,67001.0,1.4380197]
[1721558631959,0.00084,67002.0,67001.0,1.4880197]
[1721558632163,0.00184,67002.0,67001.0,1.5038113]
[1721558632388,0.00184,67002.0,67001.0,1.64340106]
[1721558632744,0.00084,67002.0,67001.0,1.64240106]
[1721558632977,0.00084,67002.0,67001.0,1.59240106]
[1721558633210,0.00084,67002.0,67001.0,1.60719304]
[1721558633432,0.00084,67002.0,67001.0,1.64140025]
[1721558633666,0.00184,67002.0,67001.0,1.59011091]
[1721558633869,0.00084,67002.0,67001.0,1.58911091]
[1721558634326,0.00084,67002.0,67001.0,1.68808227]
[1721558634327,0.00284,67002.0,67001.0,1.68808227]
[1721558634801,0.00184,67002.0,67001.0,1.68708227]
[1721558635055,0.00284,67002.0,67001.0,1.68807346]
[1721558635262,0.00184,67002.0,67001.0,1.68707346]
[1721558635462,0.00184,67002.0,67001.0,1.64239129]
[1721558635637,0.00084,67002.0,67001.0,1.64139129]
[1721558635839,0.00184,67002.0,67001.0,1.64239129]
[1721558636038,0.00184,67002.0,67001.0,1.68707346]
[1721558636283,0.00184,67002.0,67001.0,1.40422802]
[1721558636480,0.00284,67002.0,67001.0,1.40522802]
[1721558636883,0.00184,67002.0,67001.0,1.40422802]
[1721558637093,0.00184,67002.0,67001.0,1.40322802]
[1721558637436,0.00184,67002.0,67001.0,1.40422802]
[1721558637754,0.00284,67002.0,67001.0,1.40522802]
[1721558638176,0.00084,67002.0,67001.0,1.40322795]
[1721558638574,0.00284,67002.0,67001.0,1.40522795]
[1721558638976,0.00184,67002.0,67001.0,1.40422795]
[1721558639817,0.00084,67002.0,67001.0,1.40322795]
[1721558640234,0.00184,67002.0,67001.0,1.40422795]
[1721558640421,0.00284,67002.0,67001.0,1.40422795]
[1721558640870,0.00284,67002.0,67001.0,1.28031189]
[1721558641044,0.00284,67002.0,67001.0,1.40422795]
[1721558641045,0.00184,67002.0,67001.0,1.40422795]
[1721558641477,0.00384,67002.0,67001.0,1.40622795]
[1721558642446,0.00284,67002.0,67001.0,1.64339016]
[1721558642651,0.00284,67002.0,67001.0,1.40522795]
[1721558643083,0.00084,67002.0,67001.0,1.40322795]
[1721558643278,0.00084,67002.0,67001.0,1.64138938]
[1721558643482,0.00184,67002.0,67001.0,1.64238938]
[1721558643916,0.00284,67002.0,67001.0,1.64338776]
[1721558644274,0.00284,67002.0,67001.0,1.64338777]
[1721558645909,0.00284,67002.0,67001.0,1.59338777]
[1721558646943,0.00284,67002.0,67001.0,1.23131189]
[1721558647148,0.00284,67002.0,67001.0,1.59338821]
[1721558647591,0.00184,67002.0,67001.0,1.59238821]
[1721558647793,0.00284,67002.0,67001.0,1.59338821]
[1721558648332,0.00184,67002.0,67001.0,1.54009959]
[1721558648615,0.00284,67002.0,67001.0,1.35522697]
[1721558650586,0.00284,67002.0,67001.0,0.20163823]
[1721558651550,0.00184,67002.0,67001.0,0.20063823]
[1721558651785,0.00284,67002.0,67001.0,0.20163823]
[1721558652022,0.00284,67002.0,67001.0,0.18448564]
[1721558652254,0.00284,67002.0,67001.0,0.20063823]
[1721558652255,0.00184,67002.0,67001.0,0.20063823]
[1721558653713,0.00084,67002.0,67001.0,0.05857056]
[1721558653912,0.00284,67002.0,67001.0,0.07772315]
[1721558654137,0.121239,67002.0,67001.0,0.07672315]
[1721558654393,0.121239,67002.0,67001.0,0.20165665]
[1721558654603,0.122239,67002.0,67001.0,0.07772315]
[1721558655097,0.122239,67002.0,67001.0,0.18450365]
[1721558655297,0.122239,67002.0,67001.0,0.20165624]
[1721558657510,0.122239,67002.0,67001.0,0.07772315]
[1721558670062,0.122239,67002.0,67001.0,0.20165738]
[1721558672729,0.122239,67002.0,67001.0,0.07772315]
[1721558672937,0.122239,67002.0,67001.0,0.20165718]
[1721558676241,0.122239,67002.0,67001.0,0.2016574]
[1721558679671,0.741935,67002.0,67001.0,0.18450486]
[1721558679875,0.676035,67002.0,67001.0,0.18450486]
[1721558680079,0.676035,67002.0,67001.0,0.18451051]
[1721558682631,0.676035,67002.0,67001.0,0.18451014]
[1721558684048,0.437237,67002.0,67001.0,0.18451014]
[1721558685117,0.676035,67002.0,67001.0,0.18451014]
[1721558685355,0.599835,67002.0,67001.0,0.18451014]
[1721558685555,0.361037,67002.0,67001.0,0.18451014]
[1721558686087,0.361037,67002.0,67001.0,0.18451032]
[1721558689424,0.361037,67002.0,67001.0,0.18451142]
[1721558691635,0.00284,67002.0,67001.0,0.20166401]
[1721558691836,0.00284,67002.0,67001.0,0.46116501]
[1721558692660,0.00284,67002.0,67001.0,0.33722415]
[1721558692865,0.00284,67002.0,67001.0,0.46116395]
[1721558696625,0.00284,67002.0,67001.0,0.46116364]
[1721558700236,0.00284,67002.0,67001.0,0.20166264]
[1721558700633,0.15722174,67002.0,67001.0,0.18451005]
[1721558700806,0.15722174,67002.0,67001.0,0.13513778]
[1721558700807,0.89821674,67002.0,67001.0,0.13513778]
[1721558701221,0.89821674,67002.0,67001.0,0.18451005]
[1721558701607,0.89721674,67002.0,67001.0,0.18351005]
[1721558701801,0.89721674,67002.0,67001.0,0.1835136]
[1721558702072,0.89621674,67002.0,67001.0,0.1835136]
[1721558702183,0.89621674,67002.0,67001.0,0.1845136]
[1721558704135,0.120239,67002.0,67001.0,0.20166619]
[1721558704386,0.264239,67002.0,67001.0,0.1845136]
[1721558704585,0.264239,67002.0,67001.0,0.20166619]
[1721558704791,0.503037,67002.0,67001.0,0.20166619]
[1721558705042,0.503037,67002.0,67001.0,0.07772315]
[1721558705193,0.503037,67002.0,67001.0,0.20166614]
[1721558707832,0.503037,67002.0,67001.0,0.20066614]
[1721558708031,0.508037,67002.0,67001.0,0.19966614]
[1721558708253,0.508037,67002.0,67001.0,0.07572315]
[1721558708459,0.512037,67002.0,67001.0,0.19966614]
[1721558710146,0.512037,67002.0,67001.0,0.15029387]
[1721558710284,0.750835,67002.0,67001.0,0.15029387]
[1721558711216,0.750835,67002.0,67001.0,0.02635088]
[1721558711447,0.750835,67002.0,67001.0,0.15029645]
[1721558712748,0.750835,67002.0,67001.0,0.19966872]
[1721558713953,0.687435,67002.0,67001.0,0.19966872]
[1721558714801,0.687435,67002.0,67001.0,0.15029645]
[1721558714926,0.687435,67002.0,67001.0,0.19966872]
[1721558717349,0.606835,67002.0,67001.0,0.19966872]
[1721558718349,0.747935,67002.0,67001.0,0.15029645]
[1721558718831,0.747935,67002.0,67001.0,0.13314386]
[1721558719860,1.14111474,67002.0,67001.0,0.13314386]
[1721558720286,1.14111474,67002.0,67001.0,0.13315246]
[1721558720493,1.14111474,67002.0,67001.0,0.00919829]
[1721558722260,1.22665905,67002.0,67001.0,0.00919829]
[1721558722462,1.14111474,67002.0,67001.0,0.00919829]
[1721558742642,1.07721474,67002.0,67001.0,0.00919829]
[1721558755409,1.07721474,67002.0,67001.0,0.008207]
[1721558756589,1.17721474,67002.0,67001.0,0.008207]
[1721558757067,1.26721474,67002.0,67001.0,0.008207]
[1721558758219,1.50601274,67002.0,67001.0,0.008207]
[1721558766672,1.83878588,67002.0,67001.0,0.008207]
[1721558766880,1.83878588,67002.0,66991.0,0.003659]
[1721558766881,0.119417,66992.0,66991.0,0.003659]
[1721558767091,0.27379874,66992.0,66991.0,0.003659]
[1721558767299,0.35559874,66992.0,66991.0,0.003659]
[1721558767702,1.34378215,66992.0,66991.0,0.003659]
[1721558767916,1.44378215,66992.0,66991.0,0.003659]
[1721558768115,1.58107843,66992.0,66991.0,0.003659]
[1721558768837,1.44378215,66992.0,66991.0,0.003659]
[1721558769453,1.45078215,66992.0,66991.0,0.003659]
[1721558769654,1.44378215,66992.0,66991.0,0.003659]
[1721558770069,1.45578215,66992.0,66991.0,0.003659]
[1721558770269,1.46278215,66992.0,66991.0,0.003659]
[1721558770478,1.61713172,66992.0,66991.0,0.003659]
[1721558770907,1.61013172,66992.0,66991.0,0.003659]
[1721558771121,1.86093809,66992.0,66991.0,0.003659]
[1721558771325,1.77163172,66992.0,66991.0,0.003659]
[1721558771534,1.77225945,66992.0,66991.0,0.003659]
[1721558771731,1.76125945,66992.0,66991.0,0.003659]
[1721558771905,1.77425945,66992.0,66991.0,0.003659]
[1721558772978,1.76225945,66992.0,66991.0,0.003659]
[1721558773385,1.91955945,66992.0,66991.0,0.003659]
[1721558774380,1.93355945,66992.0,66991.0,0.003659]
[1721558774596,1.94283019,66992.0,66991.0,0.003659]
[1721558774810,1.92983019,66992.0,66991.0,0.003659]
[1721558775022,1.94383019,66992.0,66991.0,0.003659]
[1721558775251,1.92983019,66992.0,66991.0,0.003659]
[1721558775457,1.92055945,66992.0,66991.0,0.003659]
[1721558775653,1.90655945,66992.0,66991.0,0.003659]
[1721558775826,1.92055945,66992.0,66991.0,0.003659]
[1721558776640,1.93455945,66992.0,66991.0,0.003659]
[1721558776852,1.94375317,66992.0,66991.0,0.003659]
[1721558777862,1.40777714,66989.0,66988.0,0.009207]
[1721558778114,0.69124714,66988.0,66979.0,0.009207]
[1721558778314,1.03562888,66988.0,66987.0,0.00242931]
[1721558778634,1.18997845,66988.0,66987.0,0.00242931]
[1721558779197,1.03562888,66988.0,66987.0,0.00242931]
[1721558779427,1.99102088,66988.0,66987.0,0.00242931]
[1721558781242,2.01902088,66988.0,66987.0,0.00242931]
[1721558781657,2.00502088,66988.0,66987.0,0.00242931]
[1721558781862,1.99102088,66988.0,66987.0,0.00242931]
[1721558782199,2.15937045,66988.0,66987.0,0.00242931]
[1721558782824,1.10779341,66980.0,66979.0,0.009207]
[1721558783090,1.53367515,66980.0,66979.0,0.009207]
[1721558783966,1.54767515,66980.0,66979.0,0.009207]
[1721558784433,1.56167515,66980.0,66979.0,0.009207]
[1721558784855,2.17282945,66980.0,66979.0,0.009207]
[1721558785060,2.17220172,66980.0,66979.0,0.009207]
[1721558785456,2.15882945,66980.0,66979.0,0.009207]
[1721558785771,2.17282945,66980.0,66979.0,0.009207]
[1721558785974,2.15882945,66980.0,66979.0,0.009207]
[1721558786219,2.17282945,66980.0,66979.0,0.009207]
[1721558786602,2.15882945,66980.0,66979.0,0.009207]
[1721558787208,2.14482945,66980.0,66979.0,0.009207]
[1721558787428,2.15882945,66980.0,66979.0,0.01020336]
[1721558788090,2.17282945,66980.0,66979.0,0.01020336]
[1721558792083,2.17282945,66980.0,66976.0,0.009196]
[1721558792084,0.19077514,66977.0,66976.0,0.009196]
[1721558792257,1.27357388,66977.0,66976.0,0.009196]
[1721558792457,1.27357388,66977.0,66976.0,1e-08]
[1721558792458,1.75134788,66977.0,66976.0,1e-08]
[1721558792655,0.69074714,66971.0,66970.0,0.009207]
[1721558792893,1.35523788,66971.0,66970.0,0.009207]
[1721558793282,1.75144688,66971.0,66970.0,0.009207]
[1721558793948,1.99035588,66971.0,66970.0,0.009207]
[1721558794351,1.98972815,66971.0,66970.0,0.009207]
[1721558794474,2.00372815,66971.0,66970.0,0.009207]
[1721558794680,2.13899494,66971.0,66970.0,0.009207]
[1721558794882,0.15232441,66958.0,66957.0,0.0491741]
[1721558795064,0.87461615,66958.0,66957.0,0.0491741]
[1721558795290,0.87461615,66958.0,66956.0,0.070607]
[1721558795291,0.63024441,66957.0,66956.0,0.070607]
[1721558795491,1.09073774,66957.0,66956.0,0.20107927]
[1721558795727,0.61281974,66957.0,66956.0,0.20107927]
[1721558795935,0.238923,66967.0,66966.0,0.04937227]
[1721558796173,0.238923,66967.0,66966.0,0.19187227]
[1721558796174,0.84168874,66967.0,66966.0,0.19187227]
[1721558796389,0.85168874,66967.0,66966.0,0.19187227]
[1721558797515,0.85168874,66967.0,66966.0,0.1425]
[1721558797516,0.86568874,66967.0,66966.0,0.1425]
[1721558797719,0.97614881,66967.0,66966.0,0.1425]
[1721558797953,0.86568874,66967.0,66966.0,0.1425]
[1721558798168,1.13745915,66967.0,66966.0,0.1425]
[1721558798751,1.15145915,66967.0,66966.0,0.1425]
[1721558799223,1.16706102,66967.0,66966.0,0.1425]
[1721558800777,0.65636761,66967.0,66966.0,0.19187227]
[1721558800977,0.89529061,66967.0,66966.0,0.19187227]
[1721558801131,0.65636761,66967.0,66966.0,0.19187227]
[1721558802142,0.65636761,66967.0,66966.0,0.1425]
[1721558802143,0.89529061,66967.0,66966.0,0.1425]
[1721558802441,0.91323497,66967.0,66966.0,0.1425]
[1721558802649,0.89529061,66967.0,66966.0,0.19187227]
[1721558803469,0.89529061,66967.0,66966.0,0.1425]
[1721558806208,0.95511861,66967.0,66966.0,0.1425]
[1721558806790,0.95511861,66967.0,66966.0,0.19187227]
[1721558808751,0.71619561,66967.0,66966.0,0.19187227]
[1721558809364,0.20342987,66967.0,66966.0,0.20902486]
[1721558810186,0.14360187,66967.0,66966.0,0.20902486]
[1721558810359,0.14360187,66967.0,66966.0,0.33304333]
[1721558810616,0.04360187,66967.0,66966.0,0.33304333]
[1721558811029,0.04360187,66967.0,66966.0,0.33304143]
[1721558814360,0.04360187,66967.0,66966.0,0.33304104]
[1721558814557,0.04360187,66967.0,66966.0,0.20902486]
[1721558814764,0.04360187,66967.0,66966.0,0.33304119]
[1721558815565,0.16306287,66967.0,66966.0,0.33304119]
[1721558816319,0.16306287,66967.0,66966.0,0.20902486]
[1721558818496,1.03421361,66967.0,66966.0,0.1425]
[1721558818674,1.11348246,66967.0,66966.0,0.1425]
[1721558820151,1.03421361,66967.0,66966.0,0.1425]
[1721558820566,1.03421361,66967.0,66966.0,0.0614]
[1721558824529,1.03421361,66967.0,66966.0,0.062324]
[1721558825008,1.03505361,66967.0,66966.0,0.062324]
[1721558827926,1.03505361,66967.0,66966.0,0.11169627]
[1721558829547,0.55720761,66967.0,66966.0,0.11169627]
[1721558829765,0.55720761,66967.0,66966.0,0.31751456]
[1721558829766,0.16390287,66967.0,66966.0,0.31751456]
[1721558830811,0.40282587,66967.0,66966.0,0.31751456]
[1721558831495,0.38882587,66967.0,66966.0,0.31751456]
[1721558832247,0.40282587,66967.0,66966.0,0.31751456]
[1721558832740,0.03044187,66967.0,66966.0,0.33466715]
[1721558832987,0.01184,66967.0,66966.0,0.33466656]
[1721558833218,0.02384,66967.0,66966.0,0.33466656]
[1721558833972,0.143301,66967.0,66966.0,0.33466656]
[1721558836123,0.143301,66967.0,66966.0,0.33466565]
[1721558839475,0.02384,66967.0,66966.0,0.33466565]
[1721558839682,0.02384,66967.0,66966.0,0.33466564]
[1721558841414,0.02384,66967.0,66966.0,0.33532663]
[1721558842401,0.02384,66967.0,66966.0,0.33532664]
[1721558844693,0.143301,66967.0,66966.0,0.33532664]
[1721558845147,0.02384,66967.0,66966.0,0.33532664]
[1721558845751,0.02384,66967.0,66966.0,0.33532662]
[1721558849798,0.143301,66967.0,66966.0,0.33532662]
[1721558851304,0.77552874,66967.0,66966.0,0.18700176]
[1721558851509,0.77552874,66967.0,66966.0,0.17497403]
[1721558851713,0.77552874,66967.0,66966.0,0.12560176]
[1721558852450,0.77552874,66967.0,66966.0,0.12560182]
[1721558853643,0.77552874,66967.0,66966.0,0.17497409]
[1721558858759,0.77552874,66967.0,66966.0,0.23677409]
[1721558858965,0.53660574,66967.0,66966.0,0.23677409]
[1721558866176,0.53660574,66967.0,66966.0,0.31497409]
[1721558866177,0.143301,66967.0,66966.0,0.31497409]
[1721558866325,0.02384,66967.0,66966.0,0.31497409]
[1721558868084,0.02384,66967.0,66966.0,0.31497406]
[1721558872077,0.143301,66967.0,66966.0,0.31497406]
[1721558875299,0.143301,66967.0,66966.0,0.31497405]
[1721558878552,0.143301,66967.0,66966.0,0.19095726]
[1721558878837,0.143301,66967.0,66966.0,0.31497404]
[1721558880801,0.02384,66967.0,66966.0,0.33212663]
[1721558881354,0.02384,66967.0,66966.0,0.45158963]
[1721558883240,0.01284,66967.0,66966.0,0.45158963]
[1721558883686,0.00984,66967.0,66966.0,0.45158963]
[1721558883913,0.02184,66967.0,66966.0,0.45158963]
[1721558884491,0.02184,66967.0,66966.0,0.45157968]
[1721558884829,0.02184,66967.0,66966.0,0.45157969]
[1721558889126,0.02184,66967.0,66966.0,0.37337969]
[1721558889359,0.02184,66967.0,66966.0,0.19211669]
[1721558890924,0.02184,66967.0,66966.0,0.19211757]
[1721558894260,0.02184,66967.0,66966.0,0.19211758]
[1721558894793,0.02184,66967.0,66966.0,0.19211759]
[1721558896678,0.03745511,66967.0,66966.0,0.19211759]
[1721558897291,0.03745511,66967.0,66966.0,0.06810985]
[1721558897450,0.03745511,66967.0,66966.0,0.19211758]
[1721558898069,0.62592085,66967.0,66966.0,0.12559272]
[1721558898276,1.10376685,66967.0,66966.0,0.12559272]
[1721558898483,1.16386685,66967.0,66966.0,0.00158499]
[1721558900760,1.2410452,66967.0,66966.0,0.00158499]
[1721558901175,1.19671426,66967.0,66966.0,0.00158499]
[1721558902389,1.16386685,66967.0,66966.0,0.00158499]
[1721558902795,1.10376685,66967.0,66966.0,0.05095726]
[1721558903330,1.10376685,66967.0,66966.0,0.00158499]
[1721558904082,1.10376685,66967.0,66966.0,0.05095726]